bitfinex-derivatives/quotes_BNBF0:USTF0_20250709
["timestamp","ask_amount","ask_price","bid_price","bid_amount"]
[1752094769947,3.34963873,667.44,666.7,2.065]
[1752094770146,3.34963873,667.44,666.71,1.5570365]
[1752094770344,3.34963873,667.44,666.72,1.5570365]
[1752094770646,3.34963873,667.44,666.73,1.5570365]
[1752094770845,3.34963873,667.44,666.74,1.5570365]
[1752094771147,3.34963873,667.44,666.75,1.5570365]
[1752094771348,3.34963873,667.44,666.76,1.5570365]
[1752094771548,3.34963873,667.44,666.77,1.5570365]
[1752094771751,3.34963873,667.44,666.78,1.5570365]
[1752094771956,3.34963873,667.44,666.79,1.5570365]
[1752094772248,3.34963873,667.44,666.8,1.5570365]
[1752094772446,3.34963873,667.44,666.81,1.5570365]
[1752094772646,3.34963873,667.44,666.82,1.5570365]
[1752094772845,3.34963873,667.44,666.7,2.065]
[1752094772846,3.34963873,667.44,666.83,1.5570365]
[1752094773050,3.34963873,667.44,666.84,1.5570365]
[1752094773270,3.34963873,667.44,666.85,1.5570365]
[1752094773447,3.34963873,667.44,666.86,1.5570365]
[1752094773646,3.34963873,667.42,666.87,1.5570365]
[1752094773846,3.34963873,667.42,666.88,1.5570365]
[1752094774045,3.34963873,667.42,666.89,1.5570365]
[1752094774250,3.34963873,667.42,666.9,1.5570365]
[1752094774450,3.34963873,667.42,666.91,1.5570365]
[1752094774749,3.34963873,667.42,666.7,2.065]
[1752094775052,3.34963873,667.42,666.71,1.55704449]
[1752094775248,3.34963873,667.42,666.72,1.55704449]
[1752094775462,3.34963873,667.42,666.73,1.55704449]
[1752094775649,3.34963873,667.42,666.74,1.55704449]
[1752094775851,3.34963873,667.42,666.75,1.55704449]
[1752094776048,3.34963873,667.42,666.76,1.55704449]
[1752094776351,3.34963873,667.42,666.77,1.55704449]
[1752094776558,3.34963873,667.42,666.78,1.55704449]
[1752094776752,3.34963873,667.42,666.79,1.55704449]
[1752094776952,3.34963873,667.42,666.8,1.55704449]
[1752094777152,3.34963873,667.42,666.81,1.55704449]
[1752094777347,3.34963873,667.42,666.82,1.55704449]
[1752094777546,3.34963873,667.42,666.83,1.55704449]
[1752094777749,3.34963873,667.41,666.84,1.55704449]
[1752094777949,3.34963873,667.41,666.85,1.55704449]
[1752094778152,3.34963873,667.41,666.86,1.55704449]
[1752094778353,3.34963873,667.41,666.87,1.55704449]
[1752094778650,3.34963873,667.55,666.88,1.55704449]
[1752094778850,3.34963873,667.54,666.89,1.55704449]
[1752094779050,3.34963873,667.54,666.9,1.55704449]
[1752094779252,3.34963873,667.54,666.91,1.55704449]
[1752094779454,3.34963873,667.55,666.7,2.065]
[1752094779654,3.34963873,667.55,666.71,1.55705836]
[1752094779854,7.81582371,668.67,666.72,1.55705836]
[1752094779855,3.34963873,667.63,666.72,1.55705836]
[1752094780055,3.34963873,667.63,666.73,1.55705836]
[1752094780252,3.34963873,667.63,666.74,1.55705836]
[1752094780456,3.34963873,667.63,666.75,1.55705836]
[1752094780754,3.34963873,667.64,666.76,1.55705836]
[1752094780951,0.26085783,667.42,666.77,1.55705836]
[1752094781156,0.26085783,667.42,666.78,1.55705836]
[1752094781355,0.26085783,667.42,666.79,1.55705836]
[1752094781550,0.26085783,667.42,666.8,1.55705836]
[1752094781749,0.26085783,667.42,666.81,1.55705836]
[1752094781956,0.26085783,667.42,666.82,1.55705836]
[1752094782157,0.26085783,667.42,666.83,1.55705836]
[1752094782359,0.26085783,667.42,666.84,1.55705836]
[1752094782554,0.26085783,667.42,666.85,1.55705836]
[1752094782760,0.26085783,667.42,666.86,1.55705836]
[1752094782961,0.26085783,667.42,666.7,2.065]
[1752094783154,0.26085783,667.42,666.71,1.55649364]
[1752094783356,0.26085783,667.42,666.72,1.55649364]
[1752094783557,0.26085783,667.42,666.73,1.55649364]
[1752094783855,0.26085783,667.42,666.74,1.55649364]
[1752094784056,0.26085783,667.42,666.75,1.55649364]
[1752094784259,0.26085783,667.42,666.76,1.55649364]
[1752094784458,0.26085783,667.42,666.77,1.55649364]
[1752094784662,0.26085783,667.42,666.78,1.55649364]
[1752094784962,0.26085783,667.42,666.79,1.55649364]
[1752094785162,0.26085783,667.42,666.8,1.55649364]
[1752094785362,0.26085783,667.42,666.81,1.55649364]
[1752094785560,0.26085783,667.42,666.82,1.55649364]
[1752094785761,0.26085783,667.42,666.83,1.55611338]
[1752094785960,0.26085783,667.42,666.58,0.26083242]
[1752094786261,0.26085783,667.42,666.59,1.55611338]
[1752094786561,0.26085783,667.42,666.6,1.55611338]
[1752094786859,0.26085783,667.42,666.61,1.55611338]
[1752094787062,0.26085783,667.42,666.62,1.55611338]
[1752094787266,0.26085783,667.42,666.63,1.55611338]
[1752094787467,0.26085783,667.42,666.64,1.55611338]
[1752094787763,0.26085783,667.42,666.65,1.55611338]
[1752094787962,0.26085783,667.42,666.66,1.55611338]
[1752094788168,0.26085783,667.42,666.67,1.55611338]
[1752094788364,0.26085783,667.42,666.68,1.55611338]
[1752094788565,0.26085783,667.42,666.69,1.55611338]
[1752094788766,0.26085783,667.42,666.7,1.55611338]
[1752094788966,0.26085783,667.42,666.71,1.55611338]
[1752094789164,0.26085783,667.42,666.72,1.55611338]
[1752094789364,0.26085783,667.42,666.73,1.55611338]
[1752094789562,0.26085783,667.42,666.74,1.55611338]
[1752094789768,0.26085783,667.42,666.75,1.55611338]
[1752094789966,0.26085783,667.42,666.76,1.55611338]
[1752094790163,0.26085783,667.42,666.77,1.55611338]
[1752094790463,3.34963873,667.38,666.62,2.674]
[1752094790665,3.34963873,667.35,666.63,1.55543665]
[1752094790864,3.34963873,667.32,666.64,1.55543665]
[1752094791068,3.34963873,667.3,666.65,1.55543665]
[1752094791269,3.34963873,667.3,666.66,1.55543665]
[1752094791469,0.26085783,667.42,666.62,2.674]
[1752094791470,3.34963873,667.31,666.67,1.55543665]
[1752094791670,3.34963873,667.31,666.68,1.55543665]
[1752094791867,3.34963873,667.31,666.69,1.55543665]
[1752094792073,3.34963873,667.31,666.7,1.55543665]
[1752094792269,3.34963873,667.31,666.62,2.674]
[1752094792467,3.34963873,667.32,666.63,1.55494011]
[1752094792672,3.34963873,667.32,666.64,1.55494011]
[1752094792870,3.34963873,667.32,666.65,1.55494011]
[1752094793173,3.34963873,667.32,666.66,1.55494011]
[1752094793475,3.34963873,667.29,666.67,1.55494011]
[1752094793668,3.34963873,667.29,666.62,2.674]
[1752094793669,3.34963873,667.25,666.62,2.674]
[1752094793871,3.34963873,667.25,666.63,1.55467211]
[1752094794071,3.34963873,667.25,666.62,2.674]
[1752094794271,3.34963873,667.25,666.63,1.55467211]
[1752094794574,3.34963873,667.26,666.62,2.674]
[1752094794874,3.34963873,667.25,666.62,2.674]
[1752094795372,3.34963873,667.28,666.62,2.674]
[1752094795570,3.34963873,667.26,666.62,2.674]
[1752094796669,3.34963873,667.27,666.62,2.674]
[1752094797375,3.34963873,667.28,666.62,2.674]
[1752094797575,3.34963873,667.27,666.62,2.674]
[1752094798172,3.34963873,667.32,666.62,2.674]
[1752094798377,0.26085783,667.42,666.62,2.674]
[1752094801780,3.34963873,667.33,666.62,2.674]
[1752094802477,3.34963873,667.34,666.62,2.674]
[1752094802677,3.34963873,667.33,666.62,2.674]
[1752094803181,3.34963873,667.34,666.62,2.674]
[1752094804177,3.34963873,667.33,666.62,2.674]
[1752094804477,3.34963873,667.28,666.62,2.674]
[1752094804882,3.34963873,667.27,666.62,2.674]
[1752094805078,3.34963873,667.19,666.62,2.674]
[1752094805281,3.34963873,667.2,666.62,2.674]
[1752094805480,3.34963873,667.21,666.62,2.674]
[1752094805781,3.34963873,667.34,666.62,2.674]
[1752094805980,3.34963873,667.39,666.62,2.674]
[1752094806284,3.61049656,667.42,666.62,2.674]
[1752094806479,0.26085783,667.42,666.62,2.674]
[1752094807579,3.34963873,667.2,666.62,2.674]
[1752094808584,3.34963873,667.24,666.62,2.674]
[1752094809082,3.34963873,667.23,666.62,2.674]
[1752094809283,3.34963873,667.24,666.62,2.674]
[1752094809581,3.34963873,667.25,666.62,2.674]
[1752094810480,0.26085783,667.42,666.62,2.674]
[1752094810481,3.34963873,667.26,666.62,2.674]
[1752094812482,3.34963873,667.27,666.62,2.674]
[1752094812981,3.34963873,667.25,666.62,2.674]
[1752094813386,3.34963873,667.26,666.62,2.674]
[1752094813586,3.34963873,667.23,666.62,2.674]
[1752094814181,3.34963873,667.24,666.62,2.674]
[1752094814686,3.34963873,667.21,666.62,2.674]
[1752094814986,3.34963873,667.22,666.62,2.674]
[1752094817384,3.34963873,667.21,666.62,2.674]
[1752094819088,3.34963873,667.2,666.62,2.674]
[1752094819386,3.34963873,667.21,666.62,2.674]
[1752094820487,3.34963873,667.2,666.62,2.674]
[1752094821591,3.34963873,667.23,666.62,2.674]
[1752094821792,3.34963873,667.25,666.62,2.674]
[1752094821993,3.34963873,667.2,666.62,2.674]
[1752094822390,3.34963873,667.18,666.62,2.674]
[1752094822794,2.2145401,666.98,666.62,2.674]
[1752094823197,2.2145401,666.99,666.62,2.674]
[1752094823496,2.2145401,666.98,666.62,2.674]
[1752094824198,2.2145401,666.99,666.62,2.674]
[1752094824700,2.2145401,667.0,666.62,2.674]
[1752094826095,2.2145401,666.98,666.62,2.674]
[1752094826298,2.2145401,666.99,666.62,2.674]
[1752094827300,2.2145401,666.98,666.62,2.674]
[1752094827700,2.2145401,666.99,666.62,2.674]
[1752094827900,2.2145401,667.01,666.62,2.674]
[1752094828100,2.2145401,666.97,666.62,2.674]
[1752094828598,2.2145401,666.98,666.62,2.674]
[1752094829201,2.2145401,666.97,666.62,2.674]
[1752094829701,2.2145401,667.0,666.62,2.674]
[1752094829902,2.2145401,667.01,666.62,2.674]
[1752094830201,2.2145401,667.02,666.62,2.674]
[1752094830400,2.2145401,667.01,666.62,2.674]
[1752094830597,2.2145401,667.0,666.62,2.674]
[1752094831001,0.26085783,667.42,666.62,2.674]
[1752094831002,2.2145401,667.01,666.62,2.674]
[1752094831498,2.2145401,667.04,666.62,2.674]
[1752094831697,2.2145401,667.06,666.62,2.674]
[1752094831898,2.2145401,667.03,666.62,2.674]
[1752094833199,2.2145401,667.02,666.62,2.674]
[1752094833403,2.2145401,667.03,666.62,2.674]
[1752094834299,2.2145401,667.04,666.62,2.674]
[1752094834497,2.2145401,667.1,666.62,2.674]
[1752094835000,2.2145401,667.08,666.62,2.674]
[1752094835201,2.2145401,667.07,666.26,0.26096444]
[1752094836102,2.2145401,667.05,666.26,0.26096444]
[1752094837407,2.2145401,667.04,666.26,0.26096444]
[1752094838308,2.2145401,666.99,666.26,0.26096444]
[1752094838809,2.2145401,667.01,666.26,0.26096444]
[1752094839210,2.2145401,667.0,666.26,0.26096444]
[1752094839611,2.2145401,667.01,666.26,0.26096444]
[1752094840011,2.2145401,667.02,666.26,0.26096444]
[1752094840412,2.2145401,667.0,666.26,0.26096444]
[1752094841407,2.2145401,666.99,666.26,0.26096444]
[1752094841610,2.2145401,667.0,666.26,0.26096444]
[1752094841911,2.2145401,666.99,666.26,0.26096444]
[1752094842405,2.2145401,666.98,666.26,0.26096444]
[1752094843315,2.2145401,666.97,666.26,0.26096444]
[1752094844013,2.2145401,667.01,666.26,0.26096444]
[1752094844610,2.2145401,667.0,666.26,0.26096444]
[1752094846414,2.2145401,666.99,666.26,0.26096444]
[1752094848018,2.2145401,667.01,666.26,0.26096444]
[1752094848717,2.2145401,667.03,666.26,0.26096444]
[1752094849314,2.2145401,667.02,666.26,0.26096444]
[1752094849919,2.2145401,667.1,666.26,0.26096444]
[1752094851417,2.2145401,667.09,666.26,0.26096444]
[1752094852817,2.2145401,667.09,666.27,1.53040833]
[1752094853021,3.34963873,667.28,666.28,1.53040833]
[1752094853221,3.34963873,667.28,666.29,1.53040833]
[1752094853418,3.34963873,667.28,666.3,1.53040833]
[1752094853622,3.34963873,667.27,666.31,1.53040833]
[1752094853819,3.34963873,667.25,666.32,1.53040833]
[1752094854021,3.34963873,667.25,666.33,1.53040833]
[1752094854224,3.34963873,667.27,666.34,1.53040833]
[1752094854424,3.34963873,667.27,666.35,1.53040833]
[1752094854722,3.34963873,667.27,666.36,1.53040833]
[1752094854924,3.34963873,667.27,666.37,1.53040833]
[1752094855124,3.34963873,667.27,666.38,1.53040833]
[1752094855322,3.34963873,667.27,666.39,1.53040833]
[1752094855621,3.34963873,667.27,666.4,1.53040833]
[1752094855821,3.34963873,667.27,666.41,1.53040833]
[1752094856024,3.34963873,667.27,666.42,1.53040833]
[1752094856225,3.34963873,667.27,666.43,1.53040833]
[1752094856526,3.34963873,667.28,666.44,1.53040833]
[1752094856720,3.34963873,667.3,666.45,1.53040833]
[1752094856918,3.34963873,667.3,666.46,1.53040833]
[1752094857123,3.34963873,667.31,666.47,1.53040833]
[1752094857325,3.34963873,667.36,666.48,1.53040833]
[1752094857522,3.34963873,667.39,666.49,1.53040833]
[1752094857724,3.34963873,667.4,666.5,1.53040833]
[1752094858023,3.34963873,667.4,666.51,1.53040833]
[1752094858224,0.26085783,667.42,666.52,1.53040833]
[1752094858421,0.26085783,667.42,666.53,1.53040833]
[1752094858625,0.26085783,667.42,666.54,1.53040833]
[1752094858822,0.26085783,667.42,666.55,1.53040833]
[1752094859021,0.26085783,667.42,666.56,1.53040833]
[1752094859221,0.26085783,667.42,666.57,1.53040833]
[1752094859426,0.26085783,667.42,666.58,1.53040833]
[1752094859626,0.26085783,667.42,666.59,1.53040833]
[1752094859923,3.34963873,667.36,666.6,1.53040833]
[1752094860122,3.34963873,667.36,666.61,1.53040833]
[1752094860422,3.34963873,667.36,666.62,1.53040833]
[1752094860723,3.34963873,667.36,666.31,5.00255779]
[1752094860927,3.34963873,667.36,666.32,1.52933171]
[1752094861127,3.34963873,667.36,666.33,1.52933171]
[1752094861327,3.34963873,667.35,666.34,1.52933171]
[1752094861527,3.34963873,667.35,666.35,1.52933171]
[1752094861727,3.34963873,667.35,666.36,1.52933171]
[1752094862027,3.34963873,667.35,666.37,1.52933171]
[1752094862223,3.34963873,667.35,666.38,1.52933171]
[1752094862421,3.34963873,667.35,666.31,5.00255779]
[1752094862422,3.34963873,667.35,666.39,1.52933171]
[1752094862624,3.34963873,667.35,666.4,1.52933171]
[1752094862827,3.34963873,667.35,666.41,1.52933171]
[1752094863026,3.34963873,667.35,666.42,1.52933171]
[1752094863223,3.34963873,667.36,666.43,1.52933171]
[1752094863424,3.34963873,667.36,666.44,1.52933171]
[1752094863629,3.34963873,667.36,666.45,1.52933171]
[1752094863924,3.34963873,667.36,666.46,1.52933171]
[1752094864128,3.34963873,667.36,666.47,1.52933171]
[1752094864325,3.34963873,667.36,666.48,1.52933171]
[1752094864525,0.26085783,667.42,666.49,1.52933171]
[1752094864725,0.26085783,667.42,666.5,1.52933171]
[1752094864927,0.26085783,667.42,666.51,1.52933171]
[1752094865129,0.26085783,667.42,666.52,1.52933171]
[1752094865329,0.26085783,667.42,666.53,1.52933171]
[1752094865531,0.26085783,667.42,666.54,1.52933171]
[1752094865826,0.26085783,667.42,666.55,1.52933171]
[1752094866030,0.26085783,667.42,666.56,1.52933171]
[1752094866331,0.26085783,667.42,666.57,1.52933171]
[1752094866529,0.26085783,667.42,666.58,1.52933171]
[1752094866729,0.26085783,667.42,666.59,1.52933171]
[1752094866930,0.26085783,667.42,666.6,1.52933171]
[1752094867227,0.26085783,667.42,666.61,1.52933171]
[1752094867427,0.26085783,667.42,666.31,3.317]
[1752094867627,0.26085783,667.42,666.32,1.52793765]
[1752094867928,0.26085783,667.42,666.33,1.52793765]
[1752094868127,0.26085783,667.42,666.34,1.52793765]
[1752094868331,0.26085783,667.42,666.35,1.52793765]
[1752094868529,0.26085783,667.42,666.36,1.52793765]
[1752094868830,0.26085783,667.42,666.37,1.52793765]
[1752094869027,0.26085783,667.42,666.38,1.52793765]
[1752094869231,0.26085783,667.42,666.39,1.52793765]
[1752094869432,0.26085783,667.42,666.4,1.52793765]
[1752094869628,0.26085783,667.42,666.41,1.52793765]
[1752094869832,0.26085783,667.42,666.42,1.52793765]
[1752094870030,0.26085783,667.42,666.43,1.52793765]
[1752094870229,0.26085783,667.42,666.44,1.52793765]
[1752094870533,0.26085783,667.42,666.45,1.52793765]
[1752094870730,0.26085783,667.42,666.46,1.52793765]
[1752094870934,0.26085783,667.42,666.47,1.52793765]
[1752094871130,0.26085783,667.42,666.48,1.52793765]
[1752094871334,0.26085783,667.42,666.49,1.52793765]
[1752094871530,0.26085783,667.42,666.5,1.52793765]
[1752094871835,0.26085783,667.42,666.51,1.52793765]
[1752094872034,0.26085783,667.42,666.52,1.52793765]
[1752094872330,0.26085783,667.42,666.53,1.52793765]
[1752094872531,0.26085783,667.42,666.54,1.52793765]
[1752094872835,0.26085783,667.42,666.55,1.52793765]
[1752094873036,0.26085783,667.42,666.56,1.52793765]
[1752094873331,0.26085783,667.42,666.57,1.52793765]
[1752094873532,0.26085783,667.42,666.58,1.52793765]
[1752094873730,0.26085783,667.42,666.59,1.52793765]
[1752094874034,0.26085783,667.42,666.31,3.317]
[1752094874238,0.26085783,667.42,666.32,1.52721584]
[1752094874433,3.61049656,667.42,666.33,1.52721584]
[1752094874634,3.61049656,667.42,666.34,1.52721584]
[1752094874838,3.34963873,667.39,666.35,1.52721584]
[1752094875138,3.34963873,667.39,666.31,3.317]
[1752094875139,3.34963873,667.39,666.36,1.52721584]
[1752094875338,3.34963873,667.39,666.37,1.52721584]
[1752094875536,3.34963873,667.39,666.38,1.52721584]
[1752094875740,3.34963873,667.39,666.39,1.52721584]
[1752094875938,3.34963873,667.4,666.4,1.52721584]
[1752094876137,3.34963873,667.39,666.41,1.52721584]
[1752094876437,3.34963873,667.39,666.42,1.52721584]
[1752094876639,3.34963873,667.39,666.43,1.52721584]
[1752094876839,3.34963873,667.39,666.44,1.52721584]
[1752094877039,3.34963873,667.4,666.45,1.52721584]
[1752094877244,3.34963873,667.39,666.46,1.52721584]
[1752094877439,3.34963873,667.39,666.47,1.52721584]
[1752094877741,0.26085783,667.42,666.48,1.52721584]
[1752094877941,0.26085783,667.42,666.31,3.317]
[1752094877942,0.26085783,667.42,666.49,1.52721584]
[1752094878242,0.26085783,667.42,666.5,1.52721584]
[1752094878438,0.26085783,667.42,666.51,1.52721584]
[1752094878741,0.26085783,667.42,666.52,1.52721584]
[1752094878937,0.26085783,667.42,666.53,1.52721584]
[1752094879242,0.26085783,667.42,666.54,1.52721584]
[1752094879438,0.26085783,667.42,666.55,1.52721584]
[1752094879641,0.26085783,667.42,666.56,1.52721584]
[1752094879840,0.26085783,667.42,666.57,1.52721584]
[1752094880038,0.26085783,667.42,666.58,1.52721584]
[1752094880240,0.26085783,667.42,666.59,1.52721584]
[1752094880438,0.26085783,667.42,666.6,1.52721584]
[1752094880639,0.26085783,667.42,666.61,1.52721584]
[1752094880941,0.26085783,667.42,666.62,1.52721584]
[1752094881138,0.26085783,667.42,666.31,3.317]
[1752094881442,0.26085783,667.42,666.32,1.52638423]
[1752094881638,0.26085783,667.42,666.33,1.52638423]
[1752094881842,0.26085783,667.42,666.34,1.52638423]
[1752094882142,0.26085783,667.42,666.35,1.52638423]
[1752094882441,0.26085783,667.42,666.36,1.52638423]
[1752094882737,0.26085783,667.42,666.37,1.52638423]
[1752094882941,0.26085783,667.42,666.31,3.317]
[1752094882942,0.26085783,667.42,666.38,1.52638423]
[1752094883136,0.26085783,667.42,666.39,1.52638423]
[1752094883341,0.26085783,667.42,666.4,1.52638423]
[1752094883539,0.26085783,667.42,666.41,1.52638423]
[1752094883739,0.26085783,667.42,666.42,1.52638423]
[1752094883942,0.26085783,667.42,666.43,1.52638423]
[1752094884139,0.26085783,667.42,666.44,1.52638423]
[1752094884440,0.26085783,667.42,666.45,1.52638423]
[1752094884640,0.26085783,667.42,666.46,1.52638423]
[1752094884840,0.26085783,667.42,666.44,1.68555779]
[1752094884841,0.26085783,667.42,666.47,1.52638423]
[1752094885143,0.26085783,667.42,666.48,1.52638423]
[1752094885343,0.26085783,667.42,666.49,1.52638423]
[1752094885544,0.26085783,667.42,666.5,1.52638423]
[1752094885744,0.26085783,667.42,666.51,1.52638423]
[1752094885944,0.26085783,667.42,666.52,1.52638423]
[1752094886140,0.26085783,667.42,666.53,1.52638423]
[1752094886546,0.26085783,667.42,666.34,2.24361157]
[1752094886745,0.26085783,667.42,666.35,1.54167602]
[1752094887041,0.26085783,667.42,666.4,1.67939978]
[1752094887241,0.26085783,667.42,666.44,1.67939978]
[1752094887443,0.26085783,667.42,666.45,1.54167602]
[1752094887644,0.26085783,667.42,666.46,1.54167602]
[1752094887845,0.26085783,667.42,666.47,1.54167602]
[1752094888045,0.26085783,667.42,666.48,1.54167602]
[1752094888245,0.26085783,667.42,666.49,1.54167602]
[1752094888442,0.26085783,667.42,666.5,1.54167602]
[1752094888641,0.26085783,667.42,666.51,1.54167602]
[1752094888845,0.26085783,667.42,666.52,1.54167602]
[1752094889045,0.26085783,667.42,666.53,1.54167602]
[1752094889242,0.26085783,667.42,666.54,1.54167602]
[1752094889446,0.26085783,667.42,666.55,1.54167602]
[1752094889646,0.26085783,667.42,666.56,1.54167602]
[1752094889846,0.26085783,667.42,666.57,1.54167602]
[1752094890044,0.26085783,667.42,666.59,1.67939978]
[1752094890344,0.26085783,667.42,666.6,1.54167602]
[1752094890544,0.26085783,667.42,666.61,1.54167602]
[1752094890748,0.26085783,667.42,666.62,1.54167602]
[1752094890946,0.26085783,667.42,666.63,1.54167602]
[1752094891247,0.26085783,667.42,666.64,1.54167602]
[1752094891444,0.26085783,667.42,666.65,1.54167602]
[1752094891641,0.26085783,667.42,666.66,1.54167602]
[1752094891846,0.26085783,667.42,666.67,1.54167602]
[1752094892047,0.26085783,667.42,666.68,1.54167602]
[1752094892348,0.26085783,667.42,666.69,1.54167602]
[1752094892550,0.26085783,667.42,666.7,1.54167602]
[1752094892746,0.26085783,667.42,666.71,1.54167602]
[1752094892945,0.26085783,667.42,666.72,1.54167602]
[1752094893244,0.26085783,667.42,666.73,1.54167602]
[1752094893445,0.26085783,667.42,666.7,2.842]
[1752094893446,0.26085783,667.42,666.74,1.54167602]
[1752094893647,0.26085783,667.42,666.75,1.54167602]
[1752094893949,0.26085783,667.42,666.76,1.54167602]
[1752094894147,0.26085783,667.42,666.77,1.54167602]
[1752094894349,0.26085783,667.42,666.78,1.54167602]
[1752094894551,0.26085783,667.42,666.79,1.54167602]
[1752094894749,0.26085783,667.42,666.7,2.842]
[1752094894750,0.26085783,667.42,666.8,1.54167602]
[1752094894949,0.26085783,667.42,666.81,1.54167602]
[1752094895149,0.26085783,667.42,666.82,1.54167602]
[1752094895348,0.26085783,667.42,666.83,1.54167602]
[1752094895550,0.26085783,667.42,666.84,1.54167602]
[1752094895752,0.26085783,667.42,666.85,1.54167602]
[1752094895951,0.26085783,667.42,666.86,1.54167602]
[1752094896252,0.26085783,667.42,666.87,1.54167602]
[1752094896451,0.26085783,667.42,666.88,1.54167602]
[1752094896652,0.26085783,667.42,666.7,2.842]
[1752094896846,0.26085783,667.42,666.71,1.53839555]
[1752094897051,0.26085783,667.42,666.72,1.53839555]
[1752094897252,0.26085783,667.42,666.73,1.53839555]
[1752094897452,0.26085783,667.42,666.74,1.53839555]
[1752094897650,0.26085783,667.42,666.75,1.53839555]
[1752094897954,0.26085783,667.42,666.76,1.53839555]
[1752094898150,0.26085783,667.42,666.77,1.53839555]
[1752094898354,0.26085783,667.42,666.78,1.53839555]
[1752094898550,0.26085783,667.42,666.79,1.53839555]
[1752094898756,0.26085783,667.42,666.8,1.53839555]
[1752094898955,0.26085783,667.42,666.81,1.53839555]
[1752094899256,0.26085783,667.42,666.82,1.53839555]
[1752094899455,0.26085783,667.42,666.7,2.842]
[1752094899456,0.26085783,667.42,666.83,1.53839555]
[1752094899650,0.26085783,667.42,666.84,1.53839555]
[1752094899851,0.26085783,667.42,666.85,1.53839555]
[1752094900056,0.26085783,667.42,666.86,1.53839555]
[1752094900256,0.26085783,667.42,666.87,1.53839555]
[1752094900455,0.26085783,667.42,666.88,1.53839555]
[1752094900752,0.26085783,667.42,666.7,2.842]
[1752094901057,0.26085783,667.42,666.71,1.53792485]
[1752094901355,0.26085783,667.42,666.72,1.53792485]
[1752094901555,0.26085783,667.42,666.73,1.53792485]
[1752094901862,0.26085783,667.42,666.74,1.53792485]
[1752094902056,0.26085783,667.42,666.7,2.842]
[1752094902057,0.26085783,667.42,666.75,1.53792485]
[1752094902257,0.26085783,667.42,666.76,1.53792485]
[1752094902453,0.26085783,667.42,666.77,1.53792485]
[1752094902754,0.26085783,667.42,666.78,1.53792485]
[1752094903056,0.26085783,667.42,666.79,1.53792485]
[1752094903259,0.26085783,667.42,666.8,1.53792485]
[1752094903460,0.26085783,667.42,666.81,1.53792485]
[1752094903659,0.26085783,667.42,666.82,1.53792485]
[1752094903857,0.26085783,667.42,666.83,1.53792485]
[1752094904161,0.26085783,667.42,666.7,2.842]
[1752094904361,0.26085783,667.42,666.71,1.5382651]
[1752094904559,0.26085783,667.42,666.72,1.5382651]
[1752094904763,0.26085783,667.42,666.73,1.5382651]
[1752094904971,0.26085783,667.42,666.74,1.5382651]
[1752094905171,0.26085783,667.42,666.75,1.5382651]
[1752094905372,0.26085783,667.42,666.76,1.5382651]
[1752094905673,0.26085783,667.42,666.77,1.5382651]
[1752094905867,0.26085783,667.42,666.78,1.5382651]
[1752094906067,0.26085783,667.42,666.79,1.5382651]
[1752094906271,0.26085783,667.42,666.8,1.5382651]
[1752094906571,0.26085783,667.42,666.81,1.5382651]
[1752094906771,0.26085783,667.42,666.82,1.5382651]
[1752094907070,3.34963873,667.82,666.83,1.5382651]
[1752094907269,7.81582371,668.84,666.84,1.5382651]
[1752094907270,3.34963873,667.74,666.84,1.5382651]
[1752094907468,3.34963873,667.74,666.85,1.5382651]
[1752094907668,0.26078257,667.53,666.86,1.5382651]
[1752094907868,0.26078257,667.53,666.87,1.5382651]
[1752094908074,0.26078257,667.53,666.88,1.5382651]
[1752094908275,0.26078257,667.53,666.89,1.5382651]
[1752094908472,0.26078257,667.53,666.9,1.5382651]
[1752094908674,0.26078257,667.53,666.91,1.5382651]
[1752094908876,0.26078257,667.53,666.92,1.5382651]
[1752094909175,0.26078257,667.53,666.93,1.5382651]
[1752094909477,0.26078257,667.53,666.94,1.5382651]
[1752094909677,0.26078257,667.53,666.95,1.5382651]
[1752094909973,0.26078257,667.53,666.7,2.842]
[1752094910171,0.26078257,667.53,666.71,1.53827057]
[1752094910375,0.26078257,667.53,666.72,1.53827057]
[1752094910577,0.26078257,667.53,666.73,1.53827057]
[1752094910778,0.26078257,667.53,666.74,1.53827057]
[1752094910974,0.26078257,667.53,666.75,1.53827057]
[1752094911173,0.26078257,667.53,666.76,1.53827057]
[1752094911374,0.26078257,667.53,666.77,1.53827057]
[1752094911576,0.26078257,667.53,666.78,1.53827057]
[1752094911774,0.26078257,667.53,666.79,1.53827057]
[1752094911973,0.26078257,667.53,666.7,2.842]
[1752094911974,0.26078257,667.53,666.8,1.53827057]
[1752094912178,0.26078257,667.53,666.81,1.53827057]
[1752094912377,0.26078257,667.53,666.82,1.53827057]
[1752094912674,0.26078257,667.53,666.83,1.53827057]
[1752094912874,0.26078257,667.53,666.84,1.53827057]
[1752094913074,0.26078257,667.53,666.85,1.53827057]
[1752094913276,0.26078257,667.53,666.86,1.53827057]
[1752094913572,0.26078257,667.53,666.87,1.53827057]
[1752094913876,0.26078257,667.53,666.88,1.53827057]